[Event "32nd Panamerican Youth 2022"]
[Site "Montevideo"]
[Date "2022.06.26"]
[Round "1.35"]
[White "Vazquez, Facundo"]
[Black "Reyes Zavaleta, Diego Alexander"]
[Result "1-0"]
[ECO "E11"]
[WhiteElo "2357"]
[BlackElo "1684"]
[Annotator "TA"]
[PlyCount "173"]
[EventDate "2022.06.26"]
[EventType "swiss"]
[EventCountry "URU"]
[SourceTitle "playchess.com"]
[Source "ChessBase"]
[SourceQuality "1"]
[TimeControl "5400+30"]

{[%evp 12,173,21,18,25,26,23,25,26,31,28,10,15,0,17,0,12,-5,0,-33,0,-16,-10,-16,42,42,29,-31,24,0,0,0,0,18,10,0,0,0,0,0,0,0,0,0,0,0,0,0,0,0,0,0,0,0,24,24,17,6,58,0,45,47,50,0,0,0,0,0,0,0,0,0,0,0,0,0,0,0,7,0,0,0,0,0,106,117,109,113,92,96,172,169,167,167,237,241,359,224,279,235,231,235,375,722,568,451,1099,1093,1012,629,660,1170,1200,1129,1186,1106,1168,1155,1159,1122,924,411,1142,1140,1139,1050,1118,1116,1024,950,881,841,764,682,862,60,68,68,68,0,68,32,37,8,70,0,0,0,0,0,8,8,8,8,8,8,29974,29975,29979,29980,29980,29981,29981,29979]} 1. d4 {[%emt 0:00:05] ChessBase II} Nf6 {[%emt 0:00:53]} 2. c4 {[%emt 0:00:11]} e6 {[%emt 0:00:02]} 3. Nf3 {[%emt 0:00:08]} Bb4+ {[%emt 0:00:04]} 4. Bd2 {[%emt 0:00:58]} a5 {[%emt 0:00:04]} 5. g3 {[%emt 0:01:21]} O-O {[%emt 0:00:51]} 6. Bg2 {[%emt 0:00:07]} d5 {[%emt 0:00:25]} 7. Qc2 $1 {[%mdl 4] is now more promising than 7.0-0.} Na6 {[%emt 0:18:00] E11: Bogo-Indian.} 8. a3 {[%emt 0:09:54]} Bxd2+ {[%emt 0:01:04]} 9. Nbxd2 {[%emt 0:00:12] [#]} b6 $146 {[%emt 0:07:17] White has an edge.} ({Predecessor:} 9... Qe7 10. Rc1 c5 11. O-O Bd7 12. e4 dxe4 13. Nxe4 Bc6 14. Nxc5 Nxc5 15. dxc5 Qxc5 16. Rfd1 {0-1 (56) Weber,J-Chandler,M Wattignies 1976 EXT 2015 [ChessBase II]}) 10. cxd5 {[%emt 0:06:25]} exd5 {[%emt 0:00:09]} 11. Ne5 {[%emt 0:01:27]} c5 {[%emt 0:03:57]} 12. O-O {[%emt 0:02:10]} Bb7 {[%emt 0:01:38]} 13. Rfd1 {[%emt 0:04:23]} Rc8 {[%emt 0:01:16]} 14. dxc5 {[%emt 0:09:01]} Nxc5 {[%emt 0:05:48]} 15. Ndf3 {[%emt 0:18:43]} Qe7 {[%emt 0:04:09]} 16. Bh3 {[%emt 0:10:19]} Rc7 {[%emt 0:01:55]} 17. Rac1 {[%emt 0:00:42]} Bc8 {[%emt 0:12:21]} (17... Nfe4 $11 18. Qb1 Re8) 18. Bg2 $14 {[%emt 0:01:53]} Bb7 {[%emt 0:00:08]} 19. Bh3 {[%emt 0:04:26]} (19. b4 $11 Ne6 20. Qb2) 19... Bc8 {[%emt 0:00:06]} (19... Nfe4 $15 20. Qb1 Re8) 20. Bxc8 {[%emt 0:00:44]} Rfxc8 {[%emt 0:00:08]} 21. Qf5 {[%emt 0:01:18]} g6 {[%emt 0:06:16]} 22. Qf4 {[%emt 0:02:18]} Ne6 {[%emt 0:10:08]} 23. Rxc7 {[%emt 0:01:48]} Rxc7 {[%emt 0:00:12]} 24. Qh4 {[%emt 0:03:45]} Kg7 {[%emt 0:04:54]} 25. Nd4 {[%emt 0:00:51] Against Rc2} Nxd4 {[%emt 0:00:36]} 26. Qxd4 {[%emt 0:00:04]} Qc5 {[%emt 0:01:29]} 27. b4 {[%emt 0:02:42]} Qc3 {[%emt 0:03:07]} 28. bxa5 {[%emt 0:02:07]} bxa5 {[%emt 0:00:25]} 29. Qxc3 {[%emt 0:02:50]} Rxc3 $11 {[%emt 0:00:05][%mdl 4096] Endgame KRN-KRN} 30. a4 {[%emt 0:00:33]} Rc2 {[%emt 0:03:45]} 31. Kf1 {[%emt 0:00:14]} Ra2 {[%emt 0:00:13]} 32. Rd4 {[%emt 0:03:13]} Rc2 {[%emt 0:00:17]} 33. f3 {[%emt 0:00:24]} Kf8 {[%emt 0:00:56]} 34. g4 {[%emt 0:01:52] With the idea g5.} h6 {[%emt 0:02:22]} ({Better is} 34... Ke7 $11) 35. h4 {[%emt 0:00:18]} (35. Rd3 $14) 35... g5 {[%emt 0:04:37]} 36. hxg5 {[%emt 0:01:23]} hxg5 {[%emt 0:00:05]} 37. Ke1 {[%emt 0:00:11]} (37. Rd3 $14) 37... Ke7 {[%emt 0:00:59]} 38. Kd1 {[%emt 0:00:37]} Rc5 {[%emt 0:00:26]} 39. Nd3 {[%emt 0:01:39]} Rc3 {[%emt 0:01:13]} 40. Kd2 {[%emt 0:00:33]} Rc7 {[%emt 0:00:25]} 41. Nc1 {[%emt 0:01:57]} Rb7 {[%emt 0:00:36] Inhibits Nb3.} 42. Kc3 {[%emt 0:00:55]} Rc7+ {[%emt 0:00:50]} 43. Kb2 {[%emt 0:00:07]} Kd6 {[%emt 0:01:00]} 44. Nb3 {[%emt 0:00:11]} Ke5 {[%emt 0:00:34]} 45. e3 {[%emt 0:00:31]} Ra7 {[%emt 0:01:08]} 46. f4+ {[%emt 0:03:34]} gxf4 {[%emt 0:00:17]} 47. Rxf4 {[%emt 0:00:02]} Ra8 {[%emt 0:03:33]} (47... Ne4 $11 {remains equal.}) 48. Rf5+ $16 {[%emt 0:00:21]} Ke6 {[%emt 0:00:10]} 49. Nd4+ {[%emt 0:00:25]} Ke7 {[%emt 0:00:17]} 50. g5 {[%emt 0:00:25]} Nd7 {[%emt 0:00:32]} (50... Ng4 $16) 51. Rxd5 $18 {[%emt 0:01:02]} Nb6 {[%emt 0:00:36]} 52. Rb5 {[%emt 0:01:11]} Nc4+ {[%emt 0:00:11]} (52... Nd7 $142 53. Nc6+ Ke6) 53. Kc3 {[%emt 0:00:35]} Nd6 {[%emt 0:00:15]} (53... Rc8 {keeps fighting.}) 54. Re5+ {[%emt 0:00:13]} Kd7 {[%emt 0:00:18]} 55. Rd5 {[%emt 0:00:53] [#] And now Nb5 would win.} Rc8+ {[%emt 0:01:17]} 56. Kd3 {[%emt 0:00:10]} Ke7 {[%emt 0:00:46]} (56... Rc1 $142 57. Rxa5 Ra1 58. Ra7+ Kc8) 57. Nf5+ {[%emt 0:00:44]} Nxf5 {[%emt 0:00:17]} 58. Rxf5 {[%emt 0:00:02] KR-KR} Ra8 {[%emt 0:00:13]} (58... Rc1 $142 59. Rxa5 Ke6) 59. Ke4 {[%emt 0:00:54]} Ra6 60. Rb5 {[%emt 0:01:07]} Ke6 {[%emt 0:01:59]} 61. Re5+ {[%emt 0:00:08]} Kd7 {[%emt 0:00:11]} 62. Kf5 {[%emt 0:00:06]} Kd8 {[%emt 0:00:26]} 63. e4 {[%emt 0:00:17]} Kd7 {[%emt 0:00:09]} 64. Rb5 {[%emt 0:00:26]} Ke7 {[%emt 0:00:17]} 65. e5 {[%emt 0:00:09]} Kf8 {[%emt 0:00:36]} 66. Rb7 {[%emt 0:01:22]} (66. Rb8+ $142 Kg7 67. Rb5) 66... Kg7 {[%emt 0:00:32]} (66... Ke8 $142 67. Rc7 Kf8) 67. Rd7 Rc6 {[%emt 0:01:00]} 68. Ra7 {[%emt 0:00:58]} Rc1 {[%emt 0:00:42]} 69. Rxa5 {[%emt 0:02:40]} Rf1+ {[%emt 0:00:06]} 70. Kg4 {[%emt 0:00:15]} Rg1+ {[%emt 0:00:06]} 71. Kf4 {[%emt 0:00:15]} Rf1+ {[%emt 0:00:05]} 72. Ke4 {[%emt 0:00:28]} Kg6 {[%emt 0:00:19]} 73. Ra8 $2 {[%emt 0:01:21]} (73. Rc5 $18 Rd1 74. a5) 73... Re1+ $14 {[%emt 0:00:51]} 74. Kf4 {[%emt 0:00:10] a5 is the strong threat.} Rf1+ {[%emt 0:00:05]} 75. Ke4 {[%emt 0:00:03]} (75. Kg4 $5 {[%cal Ra4a5]}) 75... Re1+ {[%emt 0:00:04]} 76. Kd5 {[%emt 0:01:09]} Kf5 $1 {[%emt 0:00:34]} 77. Re8 {[%emt 0:00:53]} ({Don't play} 77. a5 Rxe5+ 78. Kc6 Re6+ 79. Kd5 Re5+ 80. Kd4 Re4+ 81. Kc5 Kxg5 $16) 77... Ra1 $1 {[%emt 0:00:27]} 78. Re7 {[%emt 0:00:27]} (78. g6 $1 $14 Kxg6 79. Ra8) 78... Rxa4 $11 {[%emt 0:00:21]} 79. Rxf7+ {[%emt 0:00:08]} Kg6 {[%emt 0:00:03]} 80. Rd7 {[%emt 0:00:55] Hoping for e6.} Kxg5 {[%emt 0:00:26]} 81. Ke6 {[%emt 0:00:13] Rg7+ would kill now.} Kg6 {[%emt 0:00:22] Inhibits Rg7+.} 82. Ke7 {[%emt 0:00:51]} Kf5 {[%emt 0:01:11]} 83. e6 {[%emt 0:00:31][%cal Be5e6,Be6e7][%mdl 32] Threatening mate with Kf7.} Ke5 $2 {[%emt 0:00:24][%mdl 8192] [#] This move loses the game for Black.} (83... Kg6 $11) 84. Rb7 {[%emt 0:00:34] White mates.} Kd5 {[%emt 0:01:02]} 85. Kd7 {[%emt 0:00:18]} Ra6 {[%emt 0:03:42]} 86. e7 {[%emt 0:00:23]} Rd6+ {[%emt 0:00:20]} 87. Kc8 {[%emt 0:00:10] Weighted Error Value: White=0.11 (very precise) /Black=0.24 (precise)} 1-0

[Event "32nd Panamerican Youth 2022"]
[Site "Montevideo"]
[Date "2022.06.26"]
[Round "1.36"]
[White "Morales Estrada, Jhoel Henry"]
[Black "Castro Silva, Moises Antonio"]
[Result "0-1"]
[ECO "A37"]
[WhiteElo "1608"]
[BlackElo "2053"]
[Annotator "RC"]
[PlyCount "48"]
[EventDate "2022.06.26"]
[EventType "swiss"]
[EventCountry "URU"]
[SourceTitle "playchess.com"]
[Source "ChessBase"]
[SourceQuality "1"]
[TimeControl "5400+30"]

1. Nf3 {[%emt 0:00:08]} c5 {[%emt 0:00:51]} 2. c4 {[%emt 0:00:45]} Nc6 {[%emt 0:00:20]} 3. g3 {[%emt 0:01:09]} g6 {[%emt 0:00:31]} 4. Bg2 {[%emt 0:01:03]} Bg7 {[%emt 0:00:10]} 5. Nc3 {[%emt 0:00:54]} e6 {[%emt 0:02:35]} 6. O-O {[%emt 0:03:33]} Nge7 {[%emt 0:00:08]} 7. d3 {[%emt 0:01:54]} O-O {[%emt 0:00:53]} 8. Bg5 {[%emt 0:04:25]} h6 {[%emt 0:02:33]} 9. Bd2 d5 {[%emt 0:04:04]} 10. Qc1 {[%emt 0:07:59]} Kh7 {[%emt 0:00:21]} 11. cxd5 {[%emt 0:19:09]} exd5 {[%emt 0:00:09]} 12. a3 {[%emt 0:08:38]} Bg4 {[%emt 0:07:37]} 13. Re1 {[%emt 0:05:16]} Bxf3 {[%emt 0:22:04]} 14. exf3 {[%emt 0:05:44]} Qd7 {[%emt 0:03:31]} 15. Rb1 Rfe8 {[%emt 0:00:30]} 16. g4 Nd4 {[%emt 0:00:30]} 17. Be3 Nec6 {[%emt 0:00:30]} 18. Qd1 Ne6 {[%emt 0:00:30]} 19. Bd2 Ne5 {[%emt 0:00:30]} 20. Nxd5 Nxd3 {[%emt 0:00:30]} 21. Bxh6 Qxd5 {[%emt 0:00:30]} 22. f4 Qd4 {[%emt 0:00:30]} 23. Bxg7 Qxf2+ {[%emt 0:00:30]} 24. Kh1 Qxe1+ {[%emt 0:00:30]} 0-1

[Event "32nd Panamerican Youth 2022"]
[Site "Montevideo"]
[Date "2022.06.27"]
[Round "2.3"]
[White "Fernandez Rocha, Mariana Abigail"]
[Black "Li, Iris"]
[Result "0-1"]
[ECO "D00"]
[WhiteElo "1125"]
[BlackElo "1365"]
[Annotator "NA RC"]
[PlyCount "122"]
[EventDate "2022.06.26"]
[EventType "swiss"]
[EventCountry "URU"]
[SourceTitle "playchess.com"]
[Source "ChessBase"]
[SourceQuality "1"]
[TimeControl "5400+30"]

1. d4 {[%emt 0:00:06]} d5 {[%emt 0:00:04]} 2. Bf4 {[%emt 0:00:08]} c5 {[%emt 0:00:04]} 3. e3 {[%emt 0:00:08]} Nc6 {[%emt 0:00:05]} 4. c3 {[%emt 0:00:30]} Qb6 {[%emt 0:00:49]} 5. Qb3 {[%emt 0:00:43]} c4 {[%emt 0:00:05]} 6. Qxb6 axb6 {[%emt 0:00:05]} 7. Nd2 {[%emt 0:00:35]} b5 {[%emt 0:00:56]} 8. e4 {[%emt 0:02:48]} e6 {[%emt 0:05:32]} 9. Ngf3 {[%emt 0:02:15]} b4 {[%emt 0:07:28]} 10. Be2 {[%emt 0:03:56]} Nf6 {[%emt 0:06:36]} 11. Ne5 Nxe5 {[%emt 0:11:28]} 12. dxe5 {[%emt 0:04:21]} Nd7 {[%emt 0:05:02]} 13. exd5 {[%emt 0:00:43]} exd5 {[%emt 0:00:05]} 14. O-O {[%emt 0:00:17]} Bc5 {[%emt 0:03:00]} 15. Rfe1 {[%emt 0:01:09]} O-O {[%emt 0:02:16]} 16. Nf3 {[%emt 0:01:10]} bxc3 {[%emt 0:04:38]} 17. bxc3 {[%emt 0:00:13]} Ra3 {[%emt 0:03:24]} 18. Rec1 {[%emt 0:02:37]} Nb6 {[%emt 0:01:37]} 19. Rc2 {[%emt 0:00:37]} Bf5 {[%emt 0:00:12]} 20. Rcc1 {[%emt 0:01:44]} Rfa8 {[%emt 0:00:32]} 21. h3 {[%emt 0:01:46]} Rxa2 {[%emt 0:00:19]} 22. Rxa2 {[%emt 0:00:06]} Rxa2 {[%emt 0:00:04]} 23. Kf1 {[%emt 0:00:18]} h6 {[%emt 0:07:24]} 24. g4 {[%emt 0:17:19]} Bd3 {[%emt 0:00:35]} 25. Nd2 {[%emt 0:02:01]} g5 {[%emt 0:02:57]} 26. Bxd3 {[%emt 0:01:53]} cxd3 {[%emt 0:00:33]} 27. Nb3 {[%emt 0:01:27]} Rxf2+ {[%emt 0:00:58]} 28. Ke1 {[%emt 0:00:48]} gxf4 {[%emt 0:01:14]} 29. Rd1 {[%emt 0:00:41]} Re2+ {[%emt 0:02:59]} 30. Kf1 {[%emt 0:00:12]} Be7 {[%emt 0:06:12]} 31. Rxd3 {[%emt 0:00:17]} Rxe5 {[%emt 0:00:35]} 32. Nd4 {[%emt 0:00:22]} Re3 {[%emt 0:02:42]} 33. Rxe3 {[%emt 0:00:24]} fxe3 {[%emt 0:00:06]} 34. Nf5 {[%emt 0:00:12]} Bg5 {[%emt 0:00:05]} 35. h4 {[%emt 0:00:14]} Bf4 {[%emt 0:00:11]} 36. Ke2 {[%emt 0:00:13]} Kh7 {[%emt 0:05:51]} 37. Nxe3 {[%emt 0:01:39]} Bxe3 {[%emt 0:00:05]} 38. Kxe3 {[%emt 0:00:10]} Na4 {[%emt 0:00:31]} 39. Kd4 {[%emt 0:00:13]} Kg6 {[%emt 0:02:08]} 40. Kxd5 {[%emt 0:00:35]} Nxc3+ {[%emt 0:00:06]} 41. Ke5 {[%emt 0:00:11]} b5 {[%emt 0:00:05]} 42. Kd4 {[%emt 0:00:20]} b4 {[%emt 0:00:05]} 43. Kd3 {[%emt 0:00:10]} f5 {[%emt 0:00:06]} 44. gxf5+ {[%emt 0:00:19]} Kxf5 {[%emt 0:00:05]} 45. Kc2 {[%emt 0:00:12]} Kg4 {[%emt 0:00:04]} 46. Kb3 {[%emt 0:00:04]} Nd5 {[%emt 0:00:05]} 47. Ka4 {[%emt 0:00:05]} Kxh4 {[%emt 0:00:04]} 48. Kb3 {[%emt 0:00:30]} Kg3 {[%emt 0:00:05]} 49. Kc4 {[%emt 0:00:05]} h5 {[%emt 0:00:04]} 50. Kd4 {[%emt 0:00:11]} h4 {[%emt 0:00:04]} 51. Kd3 {[%emt 0:00:04]} h3 {[%emt 0:00:09]} 52. Kc4 {[%emt 0:00:05]} h2 {[%emt 0:00:04]} 53. Kxd5 {[%emt 0:00:04]} h1=Q+ {[%emt 0:00:07]} 54. Kc4 {[%emt 0:00:07]} Qd1 {[%emt 0:00:11]} 55. Kxb4 {[%emt 0:00:08]} Qc2 {[%emt 0:00:05]} 56. Ka3 {[%emt 0:00:08]} Qb1 {[%emt 0:00:05]} 57. Ka4 {[%emt 0:00:07]} Kf4 {[%emt 0:00:06]} 58. Ka5 {[%emt 0:00:04]} Ke5 {[%emt 0:00:07]} 59. Ka6 {[%emt 0:00:04]} Kd6 {[%emt 0:00:04]} 60. Ka7 {[%emt 0:00:08]} Kc6 {[%emt 0:00:05]} 61. Ka8 {[%emt 0:00:19]} Qb7# {[%emt 0:00:07]} 0-1

[Event "32nd Panamerican Youth 2022"]
[Site "Montevideo"]
[Date "2022.06.27"]
[Round "2.4"]
[White "Vilca Contreras, Dante Ivan"]
[Black "Oro, Faustino"]
[Result "1/2-1/2"]
[ECO "E46"]
[WhiteElo "1315"]
[BlackElo "2008"]
[Annotator "NA RC"]
[PlyCount "87"]
[EventDate "2022.06.26"]
[EventType "swiss"]
[EventCountry "URU"]
[SourceTitle "playchess.com"]
[Source "ChessBase"]
[SourceQuality "1"]
[TimeControl "5400+30"]

1. d4 {[%emt 0:00:06]} Nf6 {[%emt 0:00:07]} 2. c4 {[%emt 0:00:13]} e6 {[%emt 0:00:07]} 3. Nc3 {[%emt 0:00:31]} Bb4 {[%emt 0:00:07]} 4. e3 {[%emt 0:02:06]} O-O {[%emt 0:00:32]} 5. Nge2 {[%emt 0:01:33]} d5 {[%emt 0:00:16]} 6. Ng3 {[%emt 0:06:04]} dxc4 {[%emt 0:03:04]} 7. Bxc4 {[%emt 0:01:04]} c5 {[%emt 0:01:51]} 8. Nge2 {[%emt 0:20:52]} cxd4 {[%emt 0:00:30]} 9. Qxd4 {[%emt 0:00:30]} Qxd4 {[%emt 0:00:30]} 10. Nxd4 {[%emt 0:00:30]} Ne4 {[%emt 0:03:25]} 11. Nde2 {[%emt 0:16:02]} Nxc3 {[%emt 0:01:19]} 12. Nxc3 {[%emt 0:00:20]} Bxc3+ {[%emt 0:00:22]} 13. bxc3 {[%emt 0:00:19]} b6 {[%emt 0:00:06]} 14. O-O {[%emt 0:01:46]} Ba6 {[%emt 0:00:52]} 15. Bxa6 {[%emt 0:01:29]} Nxa6 {[%emt 0:00:05]} 16. Rd1 {[%emt 0:03:23]} Rfc8 {[%emt 0:00:31]} 17. Bb2 {[%emt 0:01:16]} Nc5 {[%emt 0:00:36]} 18. Rac1 {[%emt 0:13:16]} Na4 {[%emt 0:01:07]} 19. Ba1 {[%emt 0:00:33]} h6 {[%emt 0:00:32]} 20. Rd4 {[%emt 0:01:59]} b5 {[%emt 0:00:52]} 21. Rb4 {[%emt 0:05:40]} a6 {[%emt 0:00:57]} 22. c4 {[%emt 0:03:01]} Rc6 {[%emt 0:00:52]} 23. Bd4 {[%emt 0:10:26]} Rac8 {[%emt 0:00:21]} 24. Kf1 {[%emt 0:01:22]} f6 {[%emt 0:02:34]} 25. f4 {[%emt 0:02:11]} Rxc4 {[%emt 0:02:20]} 26. Rcxc4 {[%emt 0:00:22]} Rxc4 {[%emt 0:00:10]} 27. Rxc4 {[%emt 0:00:17]} bxc4 {[%emt 0:00:04]} 28. Ke2 {[%emt 0:01:30]} Kf7 {[%emt 0:00:22]} 29. e4 {[%emt 0:02:04]} f5 {[%emt 0:00:33]} 30. exf5 {[%emt 0:00:38]} exf5 {[%emt 0:00:05]} 31. Ke3 {[%emt 0:01:05]} g6 {[%emt 0:00:22]} 32. Ba1 {[%emt 0:01:07]} Ke6 {[%emt 0:01:02]} 33. Kd4 {[%emt 0:00:28]} Nb6 {[%emt 0:00:15]} 34. g3 {[%emt 0:01:23]} Kd6 {[%emt 0:00:44]} 35. Bc3 {[%emt 0:01:04]} Nd5 {[%emt 0:01:20]} 36. Bd2 {[%emt 0:00:37]} Nf6 {[%emt 0:03:49]} 37. Kxc4 {[%emt 0:00:23]} Ng4 {[%emt 0:00:26]} 38. h4 {[%emt 0:00:49]} Nf2 {[%emt 0:00:59]} 39. Be1 {[%emt 0:00:28]} Ne4 {[%emt 0:00:12]} 40. Kd4 {[%emt 0:00:39]} Ke6 {[%emt 0:03:17]} 41. Kc4 {[%emt 0:00:15]} Kd6 {[%emt 0:00:07]} 42. Kd4 {[%emt 0:00:15]} Nf6 {[%emt 0:01:09]} 43. Bb4+ {[%emt 0:00:24]} Ke6 {[%emt 0:00:12]} 44. Be1 {[%emt 0:00:41]} 1/2-1/2

[Event "32nd Panamerican Youth 2022"]
[Site "Montevideo"]
[Date "2022.06.27"]
[Round "2.5"]
[White "Mollo Figueroa, Nicole"]
[Black "Su, Jasmine Zhixin"]
[Result "0-1"]
[ECO "B50"]
[WhiteElo "1340"]
[BlackElo "1984"]
[Annotator "NA RC"]
[PlyCount "136"]
[EventDate "2022.06.26"]
[EventType "swiss"]
[EventCountry "URU"]
[SourceTitle "playchess.com"]
[Source "ChessBase"]
[SourceQuality "1"]
[TimeControl "5400+30"]

1. e4 {[%emt 0:01:14]} c5 {[%emt 0:00:00]} 2. Nf3 {[%emt 0:00:45]} d6 {[%emt 0:00:02]} 3. c3 {[%emt 0:00:50]} Nf6 {[%emt 0:00:04]} 4. h3 {[%emt 0:00:44]} Nc6 {[%emt 0:00:06]} 5. Bd3 {[%emt 0:01:15]} e5 {[%emt 0:00:05]} 6. Bc2 {[%emt 0:03:31]} d5 {[%emt 0:00:51]} 7. exd5 Qxd5 {[%emt 0:00:14]} 8. Qe2 {[%emt 0:06:00]} Be6 {[%emt 0:00:23]} 9. O-O e4 {[%emt 0:14:43]} 10. Nh2 {[%emt 0:08:51]} O-O-O {[%emt 0:01:09]} 11. Re1 {[%emt 0:02:13]} Bf5 {[%emt 0:03:26]} 12. Nf1 {[%emt 0:05:49]} Bg6 {[%emt 0:01:50]} 13. Ne3 {[%emt 0:03:00]} Qd7 {[%emt 0:03:45]} 14. Na3 {[%emt 0:03:16]} Bd6 {[%emt 0:05:07]} 15. Nac4 {[%emt 0:07:30]} Bc7 {[%emt 0:00:52]} 16. a4 {[%emt 0:05:17]} Kb8 {[%emt 0:08:00]} 17. b3 {[%emt 0:05:47]} Ne5 {[%emt 0:06:17]} 18. Nxe5 Bxe5 {[%emt 0:00:03]} 19. Qc4 {[%emt 0:04:39]} Rc8 {[%emt 0:02:07]} 20. a5 {[%emt 0:07:14]} Rhd8 {[%emt 0:02:47]} 21. b4 {[%emt 0:03:24]} cxb4 {[%emt 0:03:14]} 22. Qxb4 {[%emt 0:01:02]} Qc7 {[%emt 0:03:10]} 23. Rb1 {[%emt 0:03:26]} Bd6 {[%emt 0:03:02]} 24. Qb2 {[%emt 0:03:50]} Rd7 {[%emt 0:00:48]} 25. Ba4 {[%emt 0:01:28]} Re7 {[%emt 0:00:15]} 26. a6 {[%emt 0:01:24]} b6 {[%emt 0:00:20]} 27. Bb5 {[%emt 0:03:02]} Bc5 {[%emt 0:01:41]} 28. Qb3 {[%emt 0:00:52]} Rd8 {[%emt 0:03:24]} 29. Ra1 {[%emt 0:03:21]} h5 {[%emt 0:03:55]} 30. Ra4 {[%emt 0:01:35]} Qd6 {[%emt 0:06:44]} 31. Rf1 {[%emt 0:02:45]} Ka8 {[%emt 0:03:39]} 32. Re1 {[%emt 0:02:33]} Bh7 {[%emt 0:03:27]} 33. Ra2 {[%emt 0:02:52]} g5 {[%emt 0:02:32]} 34. Be2 {[%emt 0:00:53]} g4 {[%emt 0:02:05]} 35. hxg4 {[%emt 0:00:41]} Nxg4 {[%emt 0:01:21]} 36. Nxg4 {[%emt 0:02:29]} hxg4 {[%emt 0:00:03]} 37. Bxg4 {[%emt 0:00:52]} Rg8 {[%emt 0:04:21]} 38. Bh3 {[%emt 0:01:09]} Qd3 {[%emt 0:02:50]} 39. Re3 {[%emt 0:01:26]} Bxe3 {[%emt 0:00:20]} 40. dxe3 {[%emt 0:00:06]} Rc7 {[%emt 0:01:40]} 41. Bd2 {[%emt 0:00:22]} Qd6 {[%emt 0:00:57]} 42. Be1 {[%emt 0:01:30]} Qh6 {[%emt 0:01:18]} 43. Qd5+ {[%emt 0:00:46]} Kb8 {[%emt 0:00:13]} 44. Kf1 {[%emt 0:00:42]} Qf6 {[%emt 0:01:22]} 45. Kg1 {[%emt 0:01:03]} Rg5 {[%emt 0:00:49]} 46. Qd1 {[%emt 0:00:51]} Bf5 {[%emt 0:00:41]} 47. Bxf5 {[%emt 0:00:24]} Qxf5 {[%emt 0:01:08]} 48. Rd2 {[%emt 0:00:09]} Rg8 {[%emt 0:01:33]} 49. Rd8+ {[%emt 0:01:12]} Rxd8 {[%emt 0:00:08]} 50. Qxd8+ {[%emt 0:00:08]} Qc8 {[%emt 0:00:13]} 51. Qd5 {[%emt 0:00:18]} Qxa6 {[%emt 0:02:07]} 52. Qxe4 {[%emt 0:01:07]} Qc4 {[%emt 0:01:40]} 53. Qe8+ {[%emt 0:00:13]} Kb7 {[%emt 0:00:08]} 54. Qd8 {[%emt 0:00:43]} a5 {[%emt 0:00:12]} 55. Qd2 {[%emt 0:00:32]} a4 {[%emt 0:00:06]} 56. Qb2 {[%emt 0:00:14]} Qb3 {[%emt 0:00:06]} 57. Qe2 {[%emt 0:00:17]} a3 {[%emt 0:00:04]} 58. Qf3+ {[%emt 0:00:08]} Ka7 59. Qg3 {[%emt 0:01:21]} Rb7 {[%emt 0:00:48]} 60. Qe5 {[%emt 0:00:37]} a2 {[%emt 0:01:02]} 61. c4 {[%emt 0:00:14]} Qb1 {[%emt 0:00:29]} 62. c5 {[%emt 0:00:09]} a1=Q {[%emt 0:01:24]} 63. cxb6+ {[%emt 0:00:11]} Ka6 {[%emt 0:00:15]} 64. Qd5 {[%emt 0:01:06]} Qxe1+ {[%emt 0:00:10]} 65. Kh2 {[%emt 0:00:07]} Qh1+ {[%emt 0:00:23]} 66. Kg3 {[%emt 0:00:10]} Qg7+ {[%emt 0:00:18]} 67. Kf4 {[%emt 0:00:24]} Qh4+ {[%emt 0:00:12]} 68. Kf3 {[%emt 0:00:58]} Qgg4# {[%emt 0:00:17]} 0-1

[Event "32nd Panamerican Youth 2022"]
[Site "Montevideo"]
[Date "2022.06.27"]
[Round "2.6"]
[White "Vidyarthi, Omya"]
[Black "Silva, Juliana Figueira The"]
[Result "1-0"]
[ECO "A48"]
[WhiteElo "1872"]
[BlackElo "1286"]
[Annotator "NA RC"]
[PlyCount "91"]
[EventDate "2022.06.26"]
[EventType "swiss"]
[EventCountry "URU"]
[SourceTitle "playchess.com"]
[Source "ChessBase"]
[SourceQuality "1"]
[TimeControl "5400+30"]

1. d4 {[%emt 0:00:02]} g6 {[%emt 0:01:01]} 2. Nf3 {[%emt 0:00:10]} Nf6 {[%emt 0:00:53]} 3. Bf4 {[%emt 0:00:17]} Bg7 {[%emt 0:01:14]} 4. h3 {[%emt 0:00:23]} d6 {[%emt 0:01:37]} 5. e3 {[%emt 0:00:22]} Nbd7 {[%emt 0:02:12]} 6. Be2 {[%emt 0:00:46]} O-O {[%emt 0:01:56]} 7. O-O {[%emt 0:01:35]} b6 {[%emt 0:01:50]} 8. Nbd2 {[%emt 0:02:55]} Bb7 {[%emt 0:04:06]} 9. a4 {[%emt 0:03:40]} a5 {[%emt 0:01:40]} 10. c4 Re8 {[%emt 0:02:04]} 11. Qc2 {[%emt 0:08:35]} e5 {[%emt 0:02:26]} 12. dxe5 {[%emt 0:00:44]} dxe5 {[%emt 0:00:37]} 13. Bh2 {[%emt 0:00:09]} Qe7 {[%emt 0:02:09]} 14. Rad1 {[%emt 0:05:26]} Kh8 {[%emt 0:03:45]} 15. Qc1 {[%emt 0:02:52]} Ng8 {[%emt 0:04:37]} 16. Nb1 {[%emt 0:01:26]} f5 {[%emt 0:01:45]} 17. Nc3 {[%emt 0:01:15]} Bc6 {[%emt 0:03:02]} 18. Nd2 {[%emt 0:04:13]} Rac8 {[%emt 0:02:51]} 19. e4 {[%emt 0:03:02]} Qg5 {[%emt 0:03:58]} 20. Kh1 {[%emt 0:06:21]} Nc5 {[%emt 0:04:48]} 21. Qc2 {[%emt 0:00:26]} Rcd8 {[%emt 0:11:03]} 22. Nf3 {[%emt 0:02:22]} Qf6 {[%emt 0:02:15]} 23. Rxd8 {[%emt 0:00:52]} Qxd8 {[%emt 0:04:15]} 24. exf5 {[%emt 0:02:13]} e4 {[%emt 0:00:26]} 25. Rd1 {[%emt 0:00:16]} Qe7 {[%emt 0:04:38]} 26. Nd4 {[%emt 0:00:59]} Bxd4 {[%emt 0:00:41]} 27. Rxd4 {[%emt 0:00:08]} gxf5 {[%emt 0:00:14]} 28. Bh5 {[%emt 0:07:01]} Rf8 {[%emt 0:00:31]} 29. Nd5 {[%emt 0:14:14]} Qg7 {[%emt 0:05:37]} 30. Qc3 {[%emt 0:01:51]} Nxa4 {[%emt 0:00:55]} 31. Qd2 {[%emt 0:02:10]} Nc5 {[%emt 0:00:32]} 32. Qe3 {[%emt 0:00:47]} Bxd5 {[%emt 0:01:03]} 33. Rxd5 {[%emt 0:00:10]} Nd3 {[%emt 0:09:35]} 34. Qe2 {[%emt 0:10:15]} f4 {[%emt 0:00:30]} 35. f3 {[%emt 0:02:31]} Nf6 {[%emt 0:06:41]} 36. Rf5 {[%emt 0:00:47]} Nxh5 {[%emt 0:00:49]} 37. Rxf8+ {[%emt 0:01:50]} Qxf8 {[%emt 0:00:08]} 38. fxe4 {[%emt 0:00:04]} f3 {[%emt 0:02:28]} 39. Qxd3 {[%emt 0:00:37]} f2 {[%emt 0:00:59]} 40. Qf1 {[%emt 0:04:18]} c5 {[%emt 0:03:16]} 41. e5 {[%emt 0:01:01]} Qf7 {[%emt 0:00:55]} 42. e6 {[%emt 0:01:06]} Qxe6 {[%emt 0:00:24]} 43. Qxf2 {[%emt 0:00:07]} Qxc4 {[%emt 0:00:29]} 44. Qf8+ {[%emt 0:00:08]} Qg8 {[%emt 0:00:10]} 45. Be5+ {[%emt 0:00:06]} Ng7 {[%emt 0:00:17]} 46. Bxg7# {[%emt 0:00:06]} 1-0